bitfinex/quotes_SOLUSD_20250917
["timestamp","ask_amount","ask_price","bid_price","bid_amount"]
[1758132265685,23.9,238.0,237.68,0.03]
[1758132265686,5.91241645,237.89,237.68,0.03]
[1758132265874,5.69886382,237.8,237.68,0.03]
[1758132266097,0.42,237.99,237.68,0.03]
[1758132266598,0.42,237.99,237.77,5.69886382]
[1758132266897,0.42,237.99,237.68,0.03]
[1758132266898,5.69886382,237.86,237.73,5.69886382]
[1758132267077,0.42,237.97,237.74,0.42062757]
[1758132267386,5.69886382,237.8,237.68,6.14959757]
[1758132267796,0.42,237.97,237.71,5.69886382]
[1758132268100,0.42,237.97,237.74,5.69886382]
[1758132268295,5.69886382,237.9,237.78,5.69886382]
[1758132268500,5.69886382,237.93,237.82,5.69886382]
[1758132268706,23.9,238.0,237.84,5.69886382]
[1758132268863,23.9,238.0,237.85,0.42043304]
[1758132269065,5.69886382,237.93,237.86,0.42041537]
[1758132269271,23.9,238.0,237.89,5.69886382]
[1758132269488,23.9,238.0,237.9,0.42034468]
[1758132269682,21.70592125,238.0,237.91,0.42032701]
[1758132269894,5.69886382,237.99,237.91,0.42032701]
[1758132270218,21.70592125,238.0,237.91,0.42032701]
[1758132270590,21.70592125,238.0,237.8,5.69886382]
[1758132270591,21.70592125,238.0,237.96,5.69886382]
[1758132270996,21.70592125,238.0,237.68,20.03]
[1758132271191,5.69886382,237.97,237.85,5.69886382]
[1758132271399,21.70592125,238.0,237.68,0.03]
[1758132271717,27.40478507,238.0,237.87,5.69886382]
[1758132271932,5.69886382,237.92,237.69,6.50377468]
[1758132272095,5.69886382,237.92,237.7,0.42069835]
[1758132272417,21.70592125,238.0,237.91,5.69886382]
[1758132272599,21.70592125,238.0,237.93,5.69886382]
[1758132272803,21.70592125,238.0,237.94,0.42027401]
[1758132273013,21.70592125,238.0,237.89,5.69886382]
[1758132273320,21.70592125,238.0,237.9,0.42034468]
[1758132273493,21.70592125,238.0,237.9,6.1192085]
[1758132273690,21.70592125,238.0,237.9,0.42034468]
[1758132273896,21.70592125,238.0,237.95,5.69886382]
[1758132274091,21.70592125,238.0,237.99,5.69886382]
[1758132274297,21.70592125,238.0,237.8,12.65]
[1758132274513,21.70592125,238.0,237.75,20.0]
[1758132274514,27.40478507,238.0,237.72,26.08305863]
[1758132274726,27.40478507,238.0,237.72,6.08305863]
[1758132274896,27.40478507,238.0,237.73,12.65]
[1758132274897,21.70592125,238.0,237.73,12.65]
[1758132275094,21.70592125,238.0,237.91,5.69886382]
[1758132275296,21.70592125,238.0,237.75,12.65]
[1758132275297,27.40478507,238.0,237.75,12.65]
[1758132275603,5.69886382,237.98,237.85,5.69886382]
[1758132275892,21.70592125,238.0,237.85,5.69886382]
[1758132276097,21.70592125,238.0,237.68,12.68]
[1758132276098,21.70592125,238.0,237.93,5.69886382]
[1758132276293,21.70592125,238.0,237.94,0.42027401]
[1758132276518,21.70592125,238.0,237.76,12.65]
[1758132276693,21.70592125,238.0,237.77,0.4205745]
[1758132277230,5.69886382,237.93,237.7,12.65]
[1758132277392,21.70592125,238.0,237.65,0.03]
[1758132277393,0.42,237.99,237.67,0.03]
[1758132277726,5.69886382,237.76,237.67,0.03]
[1758132277927,19.99999751,237.98,237.67,0.03]
[1758132278095,0.42,237.97,237.67,0.03]
[1758132278294,0.42,237.97,237.75,5.69886382]
[1758132278540,4.62185722,237.99,237.78,5.69886382]
[1758132278700,5.69886382,237.89,237.79,0.42053913]
[1758132278895,4.62185722,237.99,237.79,0.42053913]
[1758132279107,15.12650027,237.99,237.67,5.72886382]
[1758132279312,15.12650027,237.99,237.73,5.69886382]
[1758132279497,0.42,237.99,237.74,0.42062757]
[1758132279698,15.12659171,237.99,237.74,0.42062757]
[1758132280331,5.69886382,237.84,237.74,0.42062757]
[1758132280510,5.69886382,237.83,237.74,0.42062757]
[1758132280707,0.42,237.99,237.74,0.42062757]
[1758132280906,5.69886382,237.9,237.79,5.69886382]
[1758132281114,0.42,237.99,237.8,0.42052144]
[1758132281115,5.69886382,237.93,237.8,0.42052144]
[1758132281313,5.69886382,237.9,237.81,0.42050376]
[1758132281634,0.42,237.99,237.81,6.11936758]
[1758132281833,0.42,237.99,237.81,0.42050376]
[1758132281834,5.69886382,237.91,237.81,0.42050376]
[1758132281999,0.42,237.99,237.81,0.42050376]
[1758132282193,0.42,237.99,237.72,5.69886382]
[1758132282194,4.62194222,237.99,237.72,5.69886382]
[1758132282393,5.69886382,237.84,237.72,5.69886382]
[1758132282613,5.69886382,237.82,237.67,0.03]
[1758132282830,5.69886382,237.88,237.69,0.42071605]
[1758132283122,5.69886382,237.84,237.71,5.69886382]
[1758132283330,0.42,237.99,237.72,0.42066296]
[1758132283496,5.69886382,237.82,237.71,5.69886382]
[1758132284024,5.69886382,237.76,237.67,0.03]
[1758132284197,5.69886382,237.7,237.67,0.03]
[1758132284403,0.42,237.95,237.67,0.03]
[1758132284619,5.69886382,237.73,237.67,0.03]
[1758132285028,5.69886382,237.71,237.67,0.03]
[1758132285325,4.6227867,237.94,237.68,5.72886382]
[1758132285534,0.42,237.94,237.72,5.69886382]
[1758132285712,0.42,237.94,237.69,0.42071605]
[1758132285713,5.69886382,237.8,237.69,0.42071605]
[1758132286036,5.69886382,237.7,237.67,0.03]
[1758132286215,5.69886382,237.7,237.65,0.03]
[1758132286538,0.42,237.92,237.69,5.69886382]
[1758132286833,0.42,237.92,237.65,0.03]
[1758132286834,5.69886382,237.71,237.65,0.03]
[1758132287039,5.69886382,237.69,237.65,0.03]
[1758132287339,0.52543085,237.9,237.65,0.03]
[1758132287627,0.52543085,237.9,237.65,5.72886382]
[1758132287831,0.52543085,237.9,237.65,0.03]
[1758132287832,5.69886382,237.72,237.65,0.03]
[1758132288033,0.52543085,237.9,237.69,5.69886382]
[1758132288269,0.52545294,237.89,237.65,0.03]
[1758132288408,0.52545294,237.89,237.69,5.69886382]
[1758132288605,5.69886382,237.79,237.69,5.69886382]
[1758132288810,5.69886382,237.77,237.65,0.03]
[1758132289020,5.69886382,237.69,237.65,0.03]
[1758132289225,0.52591719,237.68,237.64,0.03]
[1758132289425,0.52549712,237.87,237.65,0.21116263]
[1758132289628,0.52551921,237.86,237.65,0.21116263]
[1758132289835,0.52551921,237.86,237.64,0.03]
[1758132289836,5.69886382,237.75,237.64,0.03]
[1758132290132,5.69886382,237.74,237.64,0.03]
[1758132290639,5.69886382,237.76,237.64,0.03]
[1758132290934,5.69886382,237.75,237.64,5.72886382]
[1758132291135,0.52538668,237.92,237.64,0.03]
[1758132291337,5.69886382,237.82,237.71,5.69886382]
[1758132291631,0.5256297,237.81,237.66,5.69886382]
[1758132291837,0.52527629,237.97,237.72,5.69886382]
[1758132292044,0.52527629,237.97,237.64,0.03]
[1758132292045,5.69886382,237.81,237.7,5.69886382]
[1758132292249,5.69886382,237.79,237.68,5.69886382]
[1758132292424,5.69886382,237.79,237.64,0.03]
[1758132292612,5.69886382,237.77,237.64,5.72886382]
[1758132292814,5.69886382,237.75,237.64,0.03]
[1758132293314,21.70592125,238.0,237.74,5.69886382]
[1758132293315,0.52534252,237.94,237.74,5.69886382]
[1758132293514,0.52534252,237.94,237.64,0.03]
[1758132293515,5.69886382,237.91,237.75,0.21043727]
[1758132293831,0.52525422,237.98,237.77,5.69886382]
[1758132294022,5.69886382,237.89,237.77,5.69886382]
[1758132294518,5.69886382,237.89,237.65,0.21047265]
[1758132294920,0.52525422,237.98,237.81,5.69886382]
[1758132295132,0.52523215,237.99,237.82,0.21018089]
[1758132295341,0.52523215,237.99,237.68,20.0]
[1758132295514,21.70592125,238.0,237.91,5.69886382]
[1758132296142,5.69886382,237.97,237.73,0.21004826]
[1758132296329,21.70592125,238.0,237.86,5.69886382]
[1758132296528,1.23523215,237.99,237.73,0.21004826]
[1758132296715,1.23523215,237.99,237.74,0.51]
[1758132296918,21.70592125,238.0,237.75,0.21036653]
[1758132297117,22.41592125,238.0,237.76,0.51]
[1758132297344,21.70592125,238.0,237.94,5.69886382]
[1758132297647,22.41592125,238.0,237.84,0.51]
[1758132297943,28.11478507,238.0,237.88,5.69886382]
[1758132298114,28.11478507,238.0,237.81,0.20992457]
[1758132298115,22.41592125,238.0,237.94,5.69886382]
[1758132298437,21.70592125,238.0,237.94,5.69886382]
[1758132298640,21.70592125,238.0,237.79,0.51]
[1758132298839,0.7,237.99,237.86,5.69886382]
[1758132299048,0.7,237.99,237.89,5.69886382]
[1758132299220,0.7,237.99,237.92,5.69886382]
[1758132299425,0.7,237.99,237.9,5.69886382]
[1758132299638,5.69886382,237.98,237.86,5.69886382]
[1758132299830,0.7,237.97,237.86,5.69886382]
[1758132300155,5.69886382,237.95,237.84,5.69886382]
[1758132300451,21.70592125,238.0,237.85,0.21022506]
[1758132300623,0.7,237.94,237.82,5.69886382]
[1758132300823,5.69886382,237.89,237.69,0.51]
[1758132301154,0.52523215,237.99,237.69,0.51]
[1758132301155,0.7,237.99,237.87,5.69886382]
[1758132301328,21.70592125,238.0,237.88,0.21000417]
[1758132301647,21.70592125,238.0,237.98,5.69886382]
[1758132301849,21.70592125,238.0,237.9,0.20977447]
[1758132302050,21.70592125,238.0,237.99,5.69886382]
[1758132302232,0.06,238.03,237.99,6.20886382]
[1758132302435,0.06,238.03,238.0,0.20961567]
[1758132302743,0.10412717,238.24,237.83,50.28]
[1758132302744,0.0486318,238.38,238.14,20.0]
[1758132303049,0.0486318,238.38,238.03,0.18]
[1758132303050,0.0486318,238.38,238.28,5.69886382]
[1758132303352,0.05313642,238.52,238.5,1.14424251]
[1758132303724,0.05313642,238.52,238.51,0.20740491]
[1758132304142,0.05313642,238.52,238.51,5.90626873]
[1758132304453,19.99999751,238.77,238.51,0.20740491]
[1758132304632,5.69886382,238.52,238.46,2.19219425]
[1758132304832,0.52380154,238.64,238.46,2.19219425]
[1758132305018,14.66705777,238.63,238.46,2.19219425]
[1758132305222,0.52384544,238.62,238.1,12.65]
[1758132305436,5.69886382,238.29,238.12,0.72]
[1758132305846,0.52459291,238.28,238.09,5.69886382]
[1758132306046,0.52459291,238.28,238.13,0.72]
[1758132306047,5.69886382,238.28,238.13,0.72]
[1758132306351,5.69886382,238.16,238.05,0.72]
[1758132306532,0.41,238.22,238.03,57.75890029]
[1758132306852,0.52474707,238.21,238.03,57.75890029]
[1758132307057,5.69886382,238.11,238.03,57.75890029]
[1758132307360,5.69886382,238.12,238.04,0.72]
[1758132307657,0.41,238.18,238.03,57.75890029]
[1758132307860,63.58,238.36,238.03,57.75890029]
[1758132307861,0.5248352,238.17,238.03,57.75890029]
[1758132308065,0.52472504,238.22,238.04,0.72]
[1758132308234,5.69886382,238.14,238.03,57.75890029]
[1758132308427,5.69886382,238.08,238.03,57.75890029]
[1758132308741,5.69886382,238.06,238.03,57.75890029]
[1758132309061,21.28635439,238.36,237.76,2.19196485]
[1758132309062,5.69886382,238.04,237.86,0.72]
[1758132309260,5.69886382,237.94,237.86,0.72]
[1758132309431,5.69886382,238.09,237.81,58.47890029]
[1758132309432,0.41,238.01,237.81,58.47890029]
[1758132309745,0.52521008,238.0,237.81,58.47890029]
[1758132309945,0.41,238.01,237.81,58.47890029]
[1758132310161,5.69886382,237.84,237.81,57.75890029]
[1758132310347,0.93521008,238.0,237.81,57.75890029]
[1758132310348,0.41,237.98,237.81,57.75890029]
[1758132310549,0.52527629,237.97,237.81,58.47890029]
[1758132310861,0.52527629,237.97,237.74,0.72]
[1758132310862,0.41,237.96,237.74,0.72]
[1758132311065,0.52532044,237.95,237.76,5.69886382]
[1758132311240,0.41,237.97,237.77,0.72]
[1758132311558,5.69886382,237.8,237.71,0.72]
[1758132311745,0.93529836,237.96,237.71,0.72]
[1758132311936,5.69886382,237.86,237.73,2.19594314]
[1758132312134,5.69886382,237.88,237.74,6.41886382]
[1758132312446,0.52529836,237.96,237.75,0.72]
[1758132312651,0.41,238.09,237.86,5.69886382]
[1758132312851,0.41,238.09,237.89,5.69886382]
[1758132312852,5.69886382,238.02,237.89,5.69886382]
[1758132313033,21.17758951,238.37,237.73,2.19594314]
[1758132313034,0.41,238.15,237.93,5.69886382]
[1758132313236,0.52490131,238.14,237.94,0.72]
[1758132313555,0.41,238.22,237.94,0.72]
[1758132313742,5.69886382,238.07,237.94,6.41886382]
[1758132313941,0.41,238.17,237.94,6.41886382]
[1758132314145,0.52485723,238.16,238.0,5.69886382]
[1758132314347,0.52463695,238.26,238.02,5.69886382]
[1758132314554,0.52463695,238.26,238.03,0.72]
[1758132314728,5.69886382,238.17,238.05,5.69886382]
[1758132314930,0.52463695,238.26,238.07,5.69886382]
[1758132315245,3.36588535,238.62,238.01,0.72]
[1758132315246,5.69886382,238.13,238.01,0.72]
[1758132315440,0.41,238.12,237.89,57.75890029]
[1758132315647,63.58,238.21,237.75,0.72]
[1758132315648,19.99999751,238.02,237.75,0.72]
[1758132315833,5.69886382,237.8,237.75,0.72]
[1758132316037,5.69886382,237.87,237.76,0.72]
[1758132316248,0.41,237.95,237.74,57.75890029]
[1758132316455,5.69886382,237.89,237.75,0.72]
[1758132316752,5.69886382,237.94,237.75,0.72]
[1758132317055,0.93516595,238.02,237.75,0.72]
[1758132317241,5.69886382,237.9,237.75,0.72]
[1758132317553,5.69886382,237.87,237.75,0.72]
[1758132317755,5.69886382,237.88,237.75,6.41886382]
[1758132317946,5.69886382,237.9,237.77,5.69886382]
[1758132318276,5.69886382,237.92,237.79,5.69886382]
[1758132318559,5.69886382,238.01,237.8,0.72]
[1758132318859,0.52521008,238.0,237.8,0.72]
[1758132319063,0.52521008,238.0,237.98,0.03]
[1758132319248,0.52518801,238.01,237.98,0.03]
[1758132319450,0.52509976,238.05,237.98,0.03]
[1758132319754,5.69886382,237.99,237.98,0.03]
[1758132319937,6.10886382,237.99,237.74,57.75890029]
[1758132320138,5.69886382,237.9,237.76,5.69886382]
[1758132320336,5.69886382,237.9,237.77,0.72]
[1758132320557,0.52525422,237.98,237.77,0.72]
[1758132320558,5.69886382,237.89,237.77,0.72]
[1758132320743,5.69886382,237.85,237.77,0.72]
[1758132321066,5.69886382,237.83,237.74,57.75890029]
[1758132321231,5.69886382,237.84,237.74,58.47890029]
[1758132321543,5.69886382,237.94,237.81,5.69886382]
[1758132321748,5.69886382,237.9,237.78,0.72]
[1758132321948,5.69886382,237.9,237.74,57.75890029]
[1758132321949,5.69886382,237.84,237.74,57.75890029]
[1758132322150,5.69886382,237.78,237.74,57.75890029]
[1758132322359,0.41,237.87,237.66,0.72]
[1758132322360,5.69886382,237.76,237.66,0.72]
[1758132322566,5.69886382,237.73,237.66,0.72]
[1758132322737,5.69886382,237.76,237.66,0.72]
[1758132323137,0.93549712,237.87,237.65,0.03]
[1758132323138,0.41,237.82,237.65,0.03]
[1758132323352,0.5256297,237.81,237.65,0.03]
[1758132323570,5.69886382,237.74,237.65,0.03]
[1758132323746,5.69886382,237.72,237.65,0.03]
[1758132323951,0.41,237.82,237.65,0.03]
[1758132324163,5.69886382,237.79,237.66,6.41886382]
[1758132324463,0.41,237.87,237.68,5.69886382]
[1758132324668,0.52551921,237.86,237.66,0.72]
[1758132324956,0.41,237.87,237.7,5.69886382]
[1758132325164,4.2022456,237.97,237.7,6.41886382]
[1758132325374,0.52529836,237.96,237.74,5.69886382]
[1758132325541,0.52529836,237.96,237.65,0.03]
[1758132325542,5.69886382,237.85,237.75,0.72]
[1758132325746,0.41,237.91,237.69,6.41886382]
[1758132325940,5.69886382,237.73,237.65,0.03]
[1758132326162,5.69886382,237.78,237.67,5.69886382]
[1758132326354,0.93543085,237.9,237.69,5.69886382]
[1758132326658,5.69886382,237.7,237.65,0.03]
[1758132327037,0.41,237.87,237.66,0.72]
[1758132327237,5.69886382,237.77,237.66,0.72]
[1758132327446,5.69886382,237.83,237.66,0.72]
[1758132327672,4.20238695,237.96,237.66,0.72]
[1758132327673,5.69886382,237.77,237.66,0.72]
[1758132327849,0.93574024,237.76,237.65,0.03]
[1758132328040,5.92874438,237.68,237.65,0.03]
[1758132328245,5.92874438,237.71,237.65,0.03]
[1758132328464,5.92874438,237.66,237.65,0.03]
[1758132328762,5.92874438,237.66,237.63,0.03]
[1758132328952,5.92874438,237.64,237.63,0.03]
[1758132329274,0.87567391,237.79,237.63,0.03]
[1758132329563,5.92874438,237.68,237.63,0.03]
[1758132329764,0.35,237.74,237.63,0.03]
[1758132329951,5.92874438,237.68,237.63,0.03]
[1758132330147,0.52580658,237.73,237.63,0.03]
[1758132330349,0.52569602,237.78,237.63,6.67874438]
[1758132330549,0.35,237.86,237.67,5.92874438]
[1758132330550,5.92874438,237.79,237.67,5.92874438]
[1758132330751,0.5255413,237.85,237.68,5.92874438]
[1758132330946,5.92874438,237.78,237.64,0.72]
[1758132331145,0.52571813,237.77,237.64,0.72]
[1758132331459,0.52567391,237.79,237.64,0.72]
[1758132331657,5.92874438,237.76,237.65,5.92874438]
[1758132331863,5.07932773,237.88,237.72,5.92874438]
[1758132332075,5.92874438,237.82,237.7,0.72]
[1758132332264,0.35,237.94,237.76,5.92874438]
[1758132332566,5.92874438,237.89,237.79,5.92874438]
[1758132332750,0.35,237.94,237.77,0.72]
[1758132332957,0.35,237.99,237.83,5.92874438]
[1758132333166,0.35,237.99,237.82,5.92874438]
[1758132333167,0.52525422,237.98,237.82,5.92874438]
[1758132333341,5.92874438,237.91,237.79,5.92874438]
[1758132333545,5.92874438,237.94,237.84,5.92874438]
[1758132333747,5.92874438,237.86,237.75,0.72]
[1758132333980,5.92874438,237.82,237.75,0.72]
[1758132334147,0.52527629,237.97,237.75,0.66]
[1758132334347,5.92874438,237.82,237.63,0.03]
[1758132334675,5.92874438,237.77,237.67,0.66]
[1758132334855,5.92874438,237.75,237.67,0.66]
[1758132335175,0.35,237.84,237.67,0.66]
[1758132335176,5.92874438,237.84,237.67,0.66]
[1758132335464,5.92874438,237.8,237.68,5.92874438]
[1758132335665,5.92874438,237.8,237.67,0.66]
[1758132335666,5.92874438,237.76,237.67,0.66]
[1758132335877,0.87549712,237.87,237.67,6.58874438]
[1758132336063,5.92874438,237.78,237.67,6.58874438]
[1758132336263,5.92874438,237.86,237.75,5.92874438]
[1758132336769,5.92874438,237.86,237.63,0.03]
[1758132336770,0.5255413,237.85,237.67,0.66]
[1758132337069,5.92874438,237.77,237.63,0.03]
[1758132337269,0.35,237.84,237.63,0.03]
[1758132337270,4.73166217,237.76,237.63,0.03]
[1758132337447,5.92874438,237.64,237.63,0.03]
[1758132337789,0.52578447,237.74,237.61,0.03]
[1758132337949,0.52578447,237.74,237.62,5.95874438]
[1758132338290,0.32,237.79,237.66,5.92874438]
[1758132338463,5.92874438,237.7,237.63,0.66]
[1758132338663,5.92874438,237.64,237.62,0.03]
[1758132338866,19.99999751,237.79,237.62,0.03]
[1758132339063,0.52569602,237.78,237.62,0.03]
[1758132339470,0.32,237.81,237.63,0.66]
[1758132339471,0.5256518,237.8,237.63,0.66]
[1758132339662,5.92874438,237.71,237.63,0.66]
[1758132339853,0.5256518,237.8,237.63,0.66]
[1758132340346,5.92874438,237.78,237.67,5.92874438]
[1758132340551,5.92874438,237.78,237.68,0.66]
[1758132340948,0.5253646,237.93,237.68,0.66]
[1758132340949,4.20309347,237.92,237.71,5.92874438]
[1758132341144,5.92874438,237.83,237.72,6.58874438]
[1758132341353,4.72874426,237.91,237.76,5.92874438]
[1758132341354,0.52540876,237.91,237.76,5.92874438]
[1758132341570,0.32,237.98,237.82,5.92874438]
[1758132341756,5.92874438,237.87,237.77,0.66]
[1758132341951,0.52551921,237.86,237.71,0.66]
[1758132342174,0.52538668,237.92,237.73,5.92874438]
[1758132342346,5.92874438,237.86,237.75,5.92874438]
[1758132342550,5.92874438,237.84,237.74,0.66]
[1758132342775,5.92874438,237.84,237.74,6.58874438]
[1758132343074,0.52538668,237.92,237.74,0.66]
[1758132343248,5.92874438,237.79,237.68,5.92874438]
[1758132343446,5.92874438,237.74,237.68,0.66]
[1758132343749,5.92874438,237.78,237.68,6.58874438]
[1758132343967,0.84543085,237.9,237.68,6.58874438]
[1758132344161,0.84543085,237.9,237.71,5.92874438]
[1758132344374,0.84543085,237.9,237.73,5.92874438]
[1758132344602,0.52543085,237.9,237.77,5.92874438]
[1758132344900,5.92874438,237.91,237.79,5.92874438]
[1758132345110,5.92874438,237.87,237.78,0.66]
[1758132345475,5.92874438,237.92,237.81,5.92874438]
[1758132345784,5.92874438,237.95,237.82,0.66]
[1758132345990,4.78695547,238.0,237.82,0.66]
[1758132346191,5.92874438,237.86,237.78,0.66]
[1758132346398,5.92874438,237.84,237.78,0.66]
[1758132346604,5.92874438,237.8,237.73,0.66]
[1758132346777,0.8453646,237.93,237.73,0.66]
[1758132346778,0.8453646,237.93,237.73,6.58874438]
[1758132347103,5.92874438,237.79,237.68,0.66]
[1758132347273,5.92874438,237.77,237.68,0.66]
[1758132347672,5.92874438,237.73,237.63,0.66]
[1758132347873,5.92874438,237.71,237.63,0.66]
[1758132348205,5.92874438,237.65,237.62,0.03]
[1758132348573,14.71621077,237.84,237.62,0.03]
[1758132348574,5.92874438,237.63,237.62,0.03]
[1758132348768,5.92874438,237.63,237.6,0.03]
[1758132348986,0.52604999,237.62,237.6,0.03]
[1758132349306,0.52591719,237.68,237.6,0.03]
[1758132349478,5.92874438,237.64,237.6,0.03]
[1758132349674,4.46645269,237.73,237.6,0.03]
[1758132349675,5.92874438,237.61,237.6,0.03]
[1758132349876,24.4664502,237.73,237.6,0.03]
[1758132349877,0.5258287,237.72,237.6,0.03]
[1758132350084,5.92874438,237.62,237.6,0.03]
[1758132350285,0.52607213,237.61,237.6,0.03]
[1758132350489,0.52587294,237.7,237.6,0.03]
[1758132350816,0.52589507,237.69,237.6,0.69]
[1758132351000,5.92874438,237.68,237.6,0.69]
[1758132351181,0.52576235,237.75,237.61,5.92874438]
[1758132351382,5.92874438,237.73,237.63,5.92874438]
[1758132351703,5.92874438,237.76,237.65,5.92874438]
[1758132351900,5.92874438,237.76,237.64,6.58874438]
[1758132352104,5.92874438,237.78,237.65,0.66]
[1758132352304,0.52571813,237.77,237.65,0.66]
[1758132352509,0.26,237.83,237.65,0.66]
[1758132352680,0.5256076,237.82,237.65,0.66]
[1758132352885,5.92874438,237.79,237.65,0.66]
[1758132353102,0.52569602,237.78,237.65,6.58874438]
[1758132353401,5.92874438,237.81,237.71,5.92874438]
[1758132353602,5.92874438,237.82,237.72,0.66]
[1758132353900,0.52545294,237.89,237.72,0.66]
[1758132354076,5.92874438,237.87,237.75,5.92874438]
[1758132354278,5.92874438,237.88,237.77,5.92874438]
[1758132354497,5.92874438,237.84,237.76,0.66]
[1758132354695,5.92874438,237.78,237.71,0.66]
[1758132354899,5.92874438,237.75,237.71,0.66]
[1758132355094,0.78540876,237.91,237.71,0.66]
[1758132355095,5.92874438,237.73,237.71,0.66]
[1758132355297,5.92874438,237.73,237.6,0.03]
[1758132355298,5.92874438,237.73,237.64,0.66]
[1758132355498,5.92874438,237.73,237.6,0.03]
[1758132355499,5.92874438,237.67,237.6,0.03]
[1758132355711,5.92874438,237.65,237.6,0.03]
[1758132355893,5.92874438,237.67,237.6,0.03]
[1758132356095,5.92874438,237.67,237.62,0.03]
[1758132356486,5.92874438,237.63,237.62,0.03]
[1758132357209,0.26,237.7,237.62,0.03]
[1758132357408,5.92874438,237.63,237.62,0.03]
[1758132358013,6.45477223,237.63,237.62,0.03]
[1758132358376,5.92874438,237.63,237.62,0.03]
[1758132358582,6.45477223,237.63,237.62,0.03]
[1758132358892,5.92874438,237.63,237.62,0.03]
[1758132359701,5.92874438,237.64,237.6,0.03]
[1758132359905,5.92874438,237.61,237.6,0.03]
[1758132360106,5.92874438,237.61,237.57,0.03]
[1758132360286,0.52609427,237.6,237.57,0.03]
[1758132360495,0.69609427,237.6,237.55,0.16]
[1758132360699,5.92874438,237.56,237.55,1e-08]
[1758132361001,6.45492723,237.56,237.55,1e-08]
[1758132361203,26.55492474,237.56,237.55,1e-08]
[1758132361384,26.55492474,237.56,237.43,0.2]
[1758132361385,30.76438761,237.56,237.43,0.2]
[1758132361714,5.92874438,237.45,237.43,0.2]
[1758132361917,0.52636011,237.48,237.43,0.2]
[1758132362118,5.92874438,237.45,237.43,0.2]
[1758132362786,6.02874438,237.45,237.44,1e-08]
[1758132362987,6.45517099,237.45,237.44,1e-08]
[1758132363199,0.62629362,237.51,237.44,1e-08]
[1758132363397,0.52629362,237.51,237.44,0.72000001]
[1758132363610,5.92874438,237.47,237.44,0.72000001]
[1758132363783,0.52613856,237.58,237.45,0.7]
[1758132364326,0.52613856,237.58,237.47,5.92874438]
[1758132364619,5.92874438,237.6,237.48,0.7]
[1758132364799,0.52587294,237.7,237.52,5.92874438]
[1758132365003,0.52589507,237.69,237.53,0.7]
[1758132365197,0.1,237.68,237.47,0.7]
[1758132365397,5.92874438,237.5,237.47,0.7]
[1758132365600,0.52609427,237.6,237.48,0.7]
[1758132365827,0.1,237.64,237.44,1e-08]
[1758132366103,14.72568158,237.68,237.44,1e-08]
[1758132366104,5.92874438,237.54,237.44,0.70000001]
[1758132366316,5.92874438,237.48,237.44,0.70000001]
[1758132366520,5.92874438,237.45,237.44,1e-08]
[1758132367119,0.1,237.54,237.44,1e-08]
[1758132367430,10.1401573,237.45,237.44,1e-08]
[1758132368007,4.21141292,237.45,237.43,1e-08]
[1758132368227,6.45519316,237.44,237.43,1e-08]
[1758132368602,0.52644878,237.44,237.43,1e-08]
[1758132368805,6.45519316,237.44,237.43,1e-08]
[1758132369302,0.52644878,237.44,237.43,1e-08]
[1758132369505,18.57874438,237.66,237.43,1e-08]
[1758132369506,14.73125973,237.59,237.43,1e-08]
[1758132369703,5.92874438,237.45,237.43,1e-08]
[1758132369906,0.52644878,237.44,237.43,1e-08]
[1758132371222,0.52622716,237.54,237.43,1e-08]
[1758132371433,5.92874438,237.44,237.43,1e-08]
[1758132371635,0.52622716,237.54,237.44,0.7]
[1758132371834,5.92874438,237.44,237.43,1e-08]
[1758132372423,19.99999751,237.42,237.2,0.2]
[1758132372631,19.99999751,237.34,237.2,0.2]
[1758132372825,0.52669279,237.33,237.2,0.2]
[1758132373138,5.92874438,237.26,237.21,0.7]
[1758132373435,0.52655966,237.39,237.22,0.7]
[1758132373936,5.92874438,237.32,237.22,0.7]
[1758132374142,6.45548155,237.31,237.22,0.7]
[1758132374313,0.52658185,237.38,237.23,5.92874438]
[1758132374513,0.52658185,237.38,237.24,0.7]
[1758132374929,0.52658185,237.38,237.2,0.19999953]
[1758132374930,5.92874438,237.27,237.2,0.19999953]